bitfinex/quotes_ETHUSD_20251226
["timestamp","ask_amount","ask_price","bid_price","bid_amount"]
[1766715263701,1.8309029,2948.0,2946.8,6.79726436]
[1766715263702,3.39224532,2947.9,2946.8,0.01024783]
[1766715263900,0.0339029,2947.8,2946.8,0.01024783]
[1766715264214,0.68183935,2947.7,2946.8,3.39343898]
[1766715264773,0.0339029,2947.8,2946.8,3.40368681]
[1766715264980,0.0339029,2947.9,2946.9,0.03393396]
[1766715265200,11.08351873,2948.0,2946.9,0.03393396]
[1766715265503,0.907,2947.9,2946.6,0.87799532]
[1766715265718,2.01535187,2947.8,2946.7,0.03393626]
[1766715265886,0.907,2947.8,2946.8,0.03393511]
[1766715266084,7.69175282,2947.8,2946.6,0.87799532]
[1766715266294,0.907,2947.7,2946.7,0.03393626]
[1766715266474,0.907,2947.6,2946.7,0.03393626]
[1766715266679,0.907,2947.6,2946.2,0.01024783]
[1766715266680,0.907,2947.6,2946.3,3.4279424]
[1766715266977,0.907,2947.6,2946.5,0.001]
[1766715267181,0.907,2947.6,2946.6,3.39373891]
[1766715267399,0.25661753,2947.5,2946.5,0.001]
[1766715267909,4.5563479,2947.5,2946.5,0.001]
[1766715268206,0.25661753,2947.5,2946.5,1.00053857]
[1766715268407,0.89,2947.8,2946.6,0.03393741]
[1766715268922,0.89,2947.9,2946.6,0.03393741]
[1766715269094,0.907,2947.8,2946.5,0.001]
[1766715269276,1.0867,2947.7,2946.5,0.001]
[1766715269476,0.907,2947.7,2946.5,0.03493857]
[1766715269721,0.907,2947.6,2946.5,0.001]
[1766715270014,0.907,2947.5,2946.5,0.001]
[1766715270313,0.907,2948.0,2946.6,0.97584783]
[1766715270618,0.907,2948.0,2946.8,0.01024783]
[1766715271000,1.797,2948.0,2946.9,0.03393396]
[1766715271209,0.907,2948.0,2946.7,0.99953626]
[1766715271521,0.907,2948.0,2946.7,0.9656]
[1766715271522,1.33709891,2948.0,2946.7,0.9656]
[1766715271884,4.72926453,2948.0,2946.8,6.7870232]
[1766715272085,1.33709891,2948.0,2946.9,0.01024783]
[1766715272390,0.907,2949.8,2947.7,0.01024783]
[1766715272592,0.907,2949.6,2947.9,0.01024783]
[1766715272792,0.907,2949.4,2948.0,0.0339213]
[1766715272986,1.797,2949.4,2948.0,0.9995213]
[1766715273181,0.1797,2949.3,2948.0,0.9995213]
[1766715273582,0.1797,2949.3,2948.0,0.9656]
[1766715273794,0.1797,2949.3,2948.0,0.9995213]
[1766715273994,3.57034346,2949.3,2948.2,3.39190014]
[1766715274283,0.907,2949.4,2948.1,0.01024783]
[1766715274284,0.907,2949.4,2948.1,6.78400649]
[1766715274508,0.907,2950.6,2948.3,0.97584783]
[1766715274715,0.907,2950.4,2948.3,0.97584783]
[1766715274992,0.907,2950.2,2948.4,0.75215682]
[1766715275782,0.89,2950.1,2948.5,0.99951555]
[1766715275978,6.779661,2950.0,2948.7,0.9656]
[1766715276200,0.907,2949.9,2948.6,3.39144]
[1766715276402,0.907,2949.9,2948.7,0.03391324]
[1766715276602,0.907,2949.7,2948.4,0.75215682]
[1766715276880,0.907,2949.7,2948.4,4.1437902]
[1766715277087,0.907,2949.7,2948.3,0.01024783]
[1766715277291,0.907,2949.7,2948.5,6.78310457]
[1766715277533,0.907,2949.7,2948.5,3.39154955]
[1766715278025,0.7515661,2949.8,2948.6,0.0339144]
[1766715278195,6.77929883,2950.2,2948.8,0.9656]
[1766715278393,8.57629883,2950.2,2948.8,0.9656]
[1766715278690,0.907,2950.2,2948.9,0.03391094]
[1766715278897,0.002,2950.5,2948.9,0.9656]
[1766715279107,3.39131775,2950.5,2949.1,0.9656]
[1766715279310,6.7806355,2950.5,2949.1,0.9656]
[1766715279630,10.16995325,2950.5,2949.1,0.9656]
[1766715279832,0.907,2950.4,2948.8,0.89]
[1766715280024,0.14876316,2951.0,2949.8,0.01024783]
[1766715280224,0.003,2951.9,2949.8,0.01024783]
[1766715280225,4.29476339,2951.8,2950.5,0.01024783]
[1766715280535,0.907,2951.7,2950.6,0.04413924]
[1766715280733,0.42947634,2951.6,2950.6,0.01024783]
[1766715281303,0.003,2951.9,2951.0,0.01024783]
[1766715281515,0.907,2952.6,2951.1,0.92388566]
[1766715281734,0.907,2952.6,2951.2,0.87208452]
[1766715281930,0.907,2953.1,2951.4,0.8382]
[1766715282132,0.907,2953.1,2951.5,1.59968747]
[1766715282343,0.907,2953.1,2949.9,0.25]
[1766715282344,0.907,2953.1,2951.6,0.87207992]
[1766715282501,0.907,2953.1,2952.7,0.01024783]
[1766715282832,0.907,2954.2,2953.7,0.01024783]
[1766715283030,0.17687501,2954.3,2953.9,0.01024783]
[1766715283233,0.17687501,2954.3,2953.7,0.01024783]
[1766715283234,6.76857004,2954.9,2953.7,0.01024783]
[1766715283552,4.29128502,2954.9,2954.0,0.01024783]
[1766715283834,4.30889152,2957.1,2954.8,0.01024783]
[1766715283999,0.17674717,2956.3,2955.6,0.01024783]
[1766715284199,0.03548366,2956.2,2954.2,0.01024783]
[1766715284433,0.03548366,2956.2,2954.7,0.89]
[1766715284434,0.9272,2956.1,2954.7,0.89]
[1766715284732,0.03548366,2956.0,2954.8,0.01024783]
[1766715284934,0.03548366,2956.0,2954.7,0.92384438]
[1766715284935,0.9272,2955.9,2954.2,0.01024783]
[1766715285124,0.9272,2955.7,2953.6,0.01024783]
[1766715285323,0.9272,2955.5,2953.4,0.89]
[1766715285510,0.9272,2955.3,2953.5,0.04410596]
[1766715285710,0.9272,2955.1,2953.4,0.89]
[1766715285912,0.9272,2955.0,2953.8,6.77090454]
[1766715286129,3.38249589,2956.4,2954.8,0.01024783]
[1766715286130,0.03548366,2955.5,2954.8,0.01024783]
[1766715286335,0.96268366,2955.8,2954.8,0.01024783]
[1766715286536,0.9272,2955.6,2954.4,0.01024783]
[1766715286722,0.9272,2955.4,2954.6,0.01024783]
[1766715286924,0.9272,2955.4,2954.5,0.01024783]
[1766715287135,0.96268366,2955.3,2953.9,0.04410137]
[1766715287333,0.9272,2955.3,2953.9,0.01024783]
[1766715287632,0.95708366,2955.2,2954.5,0.01024783]
[1766715287798,0.95708366,2955.9,2955.1,0.01024783]
[1766715288000,0.9216,2955.9,2955.3,0.01024783]
[1766715288203,3.38280494,2956.2,2955.3,0.01024783]
[1766715288401,0.9216,2956.0,2955.0,0.01024783]
[1766715288639,0.9216,2955.8,2955.0,0.01024783]
[1766715288935,0.9216,2955.6,2953.3,0.01024783]
[1766715289137,0.9216,2955.2,2953.4,0.01024783]
[1766715289437,0.2,2956.0,2953.6,0.01024783]
[1766715289438,0.9216,2955.0,2953.6,0.01024783]
[1766715289625,0.95708366,2954.9,2953.4,0.01024783]
[1766715289936,10.15297143,2954.8,2953.5,0.03385813]
[1766715290237,0.9216,2954.6,2952.8,0.04411399]
[1766715290439,0.92348366,2954.5,2953.3,0.01024783]
[1766715290616,0.9216,2954.4,2953.1,0.01024783]
[1766715290938,0.95708366,2954.3,2953.2,0.03386157]
[1766715291145,0.9216,2954.3,2953.3,0.04410825]
[1766715291347,6.76689387,2955.6,2953.6,0.1697]
[1766715291548,0.9216,2955.0,2953.4,3.38592725]
[1766715291707,0.9216,2955.0,2953.0,4.44501982]
[1766715291708,0.9216,2954.8,2953.1,2.321]
[1766715291905,0.95708366,2954.7,2953.1,0.44450198]
[1766715292123,0.9216,2953.7,2952.0,0.1697]
[1766715292323,0.03548366,2954.1,2952.3,11.429886]
[1766715292547,0.9216,2953.9,2952.4,1.1429886]
[1766715292830,1.84508366,2953.8,2952.5,0.0338696]
[1766715293054,1.84508366,2953.8,2952.5,3.3869495]
[1766715293255,0.95708366,2953.8,2952.6,0.03386845]
[1766715293557,0.92348366,2953.7,2952.7,0.0338673]
[1766715293756,0.002,2953.7,2952.8,0.03386616]
[1766715294061,0.888,2954.1,2952.7,3.38673078]
[1766715294281,0.03548366,2954.4,2952.7,3.38673078]
[1766715294282,0.03548366,2954.4,2952.8,0.72248494]
[1766715294557,0.9216,2954.5,2953.0,0.17794783]
[1766715294764,0.95708366,2954.4,2952.8,0.67837095]
[1766715294936,0.95708366,2954.4,2952.9,0.03386501]
[1766715295126,0.888,2954.3,2952.9,0.03386501]
[1766715295326,0.888,2954.2,2952.8,12.171968]
[1766715295637,0.888,2954.3,2952.9,1.23499158]
[1766715295828,0.95708366,2954.2,2952.5,0.01024783]
[1766715296164,0.888,2954.1,2952.8,3.38661609]
[1766715296372,0.9216,2954.2,2953.0,0.01024783]
[1766715296539,7.65759164,2954.4,2953.0,0.01024783]
[1766715296742,0.95708366,2954.3,2953.0,0.01024783]
[1766715297249,0.95708366,2954.3,2953.1,0.03386272]
[1766715297466,0.9216,2954.3,2953.1,0.03386272]
[1766715297666,0.03548366,2954.5,2953.2,22.88318583]
[1766715297831,0.9216,2954.8,2953.5,19.180297]
[1766715298166,3.38466745,2954.5,2953.3,2.11985962]
[1766715298479,7.6926334,2954.6,2952.9,0.1677]
[1766715298627,0.95708366,2954.5,2952.6,3.38682988]
[1766715298828,2.34859538,2954.4,2952.8,0.1677]
[1766715299042,1.8096,2954.4,2952.8,3.55427799]
[1766715299338,0.95708366,2954.3,2952.8,3.55427204]
[1766715299749,0.95708366,2954.3,2952.8,0.1677]
[1766715300129,0.03548366,2954.5,2953.0,6.94047344]
[1766715300483,3.38446848,2954.7,2953.0,6.94047344]
[1766715300484,0.03548366,2954.7,2953.4,0.1677]
[1766715300630,0.95708366,2956.0,2953.8,0.1677]
[1766715300834,1.32219246,2955.9,2954.1,0.1677]
[1766715301080,3.39271765,2956.5,2954.1,0.1677]
[1766715301081,0.9216,2956.6,2954.9,0.01024783]
[1766715301241,0.9216,2957.5,2955.4,0.01024783]
[1766715301438,0.888,2957.3,2955.6,13.11081683]
[1766715301677,0.01024783,2958.7,2956.0,0.30744783]
[1766715301678,0.9216,2958.4,2956.0,0.30744783]
[1766715301877,0.888,2958.3,2956.2,9.790591]
[1766715302168,0.888,2958.3,2956.1,0.33102835]
[1766715302169,3.38528359,2959.0,2958.0,0.01024783]
[1766715302332,3.38528359,2959.0,2957.9,0.01024783]
[1766715302537,0.00671926,2959.3,2958.5,0.01024783]
[1766715302840,0.14398614,2960.1,2958.6,0.01024783]
[1766715303053,0.14398614,2960.1,2958.8,0.01024783]
[1766715303256,3.37723741,2961.0,2959.2,0.01024783]
[1766715303575,3.37723741,2961.0,2958.8,0.01024783]
[1766715303576,0.9216,2960.8,2958.8,1.47548374]
[1766715303778,2.774,2960.3,2957.8,0.888]
[1766715303959,6.57732035,2959.8,2957.9,4.849105]
[1766715304147,0.9216,2960.8,2958.5,0.01024783]
[1766715304348,0.9216,2960.8,2959.7,0.01024783]
[1766715304549,6.75290442,2961.7,2959.9,0.965]
[1766715304749,0.887,2963.5,2961.8,0.01024783]
[1766715304949,6.54272035,2964.2,2961.9,0.97524783]
[1766715305258,13.49300048,2964.5,2961.9,0.97524783]
[1766715305259,1.56165002,2964.4,2962.7,0.01024783]
[1766715305572,3.37247295,2965.2,2964.1,0.01024783]
[1766715305771,0.03373591,2965.2,2964.4,0.01024783]
[1766715305970,0.003,2965.4,2963.9,0.01024783]
[1766715306173,0.003,2965.4,2962.9,0.05]
[1766715306174,0.9216,2965.0,2962.9,0.965]
[1766715306473,0.04215851,2965.0,2963.6,0.97849232]
[1766715306641,0.003,2965.5,2964.4,0.965]
[1766715306841,0.003,2965.5,2963.7,0.01349232]
[1766715306842,0.9216,2965.2,2963.7,0.01349232]
[1766715307063,1.8086,2965.1,2963.7,0.01349232]
[1766715307375,0.887,2965.0,2964.0,0.01349232]
[1766715307587,1.5654793,2965.2,2964.4,0.01349232]
[1766715307873,3.37029422,2967.1,2965.9,0.01349232]
[1766715308041,3.37029422,2967.1,2965.7,0.01349232]
[1766715308042,6.74058844,2967.1,2966.0,0.03371544]
[1766715308242,4.81026955,2966.1,2963.7,0.965]
[1766715308492,0.002,2965.1,2964.2,0.01685488]
[1766715308779,3.37312042,2967.3,2966.1,10.877387]
[1766715308942,3.37312042,2967.3,2965.9,0.965]
[1766715308943,0.887,2967.2,2965.9,0.965]
[1766715309276,0.04212725,2967.2,2966.0,0.03371544]
[1766715309479,0.9216,2969.3,2967.2,0.01685488]
[1766715309682,0.04209888,2969.2,2967.8,0.01685488]
[1766715309855,0.04208754,2970.0,2968.2,0.01685488]
[1766715310051,5.69626955,2969.9,2968.3,0.03368931]
[1766715310262,10.10849172,2968.3,2966.3,0.01685488]
[1766715310476,0.01685488,2969.2,2965.8,0.01685488]
[1766715310477,0.04211306,2968.2,2966.8,0.01685488]
[1766715310680,0.04209888,2969.2,2967.8,0.01685488]
[1766715310975,3.36657952,2970.4,2967.6,0.01685488]
[1766715310976,0.04209321,2969.6,2968.4,0.01685488]
[1766715311175,0.9216,2969.7,2967.2,0.05]
[1766715311384,0.94517696,2969.1,2966.7,2.859592]
[1766715311544,0.94517696,2969.1,2966.6,0.965]
[1766715311545,4.81026955,2968.9,2967.1,0.02357696]
[1766715311744,0.886,2969.1,2967.0,0.965]
[1766715311980,0.886,2969.1,2966.1,0.05]
[1766715311981,4.81026955,2968.2,2967.1,0.00837927]
[1766715312282,4.81026955,2968.2,2966.1,0.965]
[1766715312283,0.92811448,2968.1,2967.6,0.02695736]
[1766715312484,0.92811448,2968.1,2967.3,0.02695736]
[1766715312485,0.02695735,2968.1,2967.9,0.02695736]
[1766715312687,3.36757029,2969.5,2968.0,0.06065008]
[1766715312909,0.9216,2969.0,2967.2,0.02695736]
[1766715313178,4.81026955,2967.9,2965.6,0.99195736]
[1766715313380,0.57318695,2968.9,2968.0,0.02695736]
[1766715313590,0.02531329,2969.3,2968.4,0.02695736]
[1766715313757,3.36723011,2969.8,2968.6,0.02695736]
[1766715313958,3.36700336,2970.0,2968.9,0.02695736]
[1766715314264,3.3661279,2970.8,2969.6,0.02695736]
[1766715314575,15.82471966,2970.9,2967.1,4.83722691]
[1766715314795,15.82471966,2970.9,2969.8,0.02695736]
[1766715314796,0.33661279,2970.7,2969.8,0.02695736]
[1766715315127,4.65317873,2971.0,2969.9,0.03067116]
[1766715315279,4.65317873,2971.0,2968.4,0.02695736]
[1766715315280,5.72676955,2970.4,2968.1,0.02695736]
[1766715315603,4.81026955,2969.9,2968.2,0.0252208]
[1766715315787,4.81026955,2969.0,2967.7,12.950013]
[1766715315996,0.95859037,2969.8,2967.8,0.05219945]
[1766715316231,0.885,2970.2,2968.3,0.03031528]
[1766715316516,10.09795011,2970.9,2968.9,0.96061528]
[1766715316794,4.81026955,2970.5,2968.4,4.85958]
[1766715316960,4.84058483,2970.0,2968.5,0.03368704]
[1766715317159,0.03031528,2969.1,2966.3,0.9303]
[1766715317379,4.81026955,2967.9,2966.3,0.9303]
[1766715317590,0.016904,2967.8,2966.0,3.37147237]
[1766715317797,0.901904,2967.7,2965.5,3.3721105]
[1766715318093,0.9165,2967.9,2965.4,0.9303]
[1766715318297,4.81026955,2967.0,2964.6,0.9303]
[1766715318472,1.38193096,2966.9,2964.8,4.659624]
[1766715318673,0.900904,2967.5,2965.6,0.9303]
[1766715318883,3.693079,2968.6,2965.6,0.9303]
[1766715318884,0.9165,2968.4,2965.9,8.899044]
[1766715319083,0.900904,2968.3,2966.5,0.05056293]
[1766715319390,1.69551144,2969.7,2966.5,0.05056293]
[1766715319391,0.016904,2969.4,2968.1,0.05056293]
[1766715319707,3.36672886,2970.3,2968.1,0.05056293]
[1766715319708,3.36828895,2970.7,2969.5,0.05056293]
[1766715320018,1.2873,2971.0,2970.5,0.05056293]
[1766715320162,3.3663233,2970.6,2969.5,0.05056293]
[1766715320363,0.05056292,2969.9,2969.2,0.05056293]
[1766715320580,1.8005,2969.8,2967.6,0.05056293]
[1766715320783,4.81026955,2969.5,2968.0,0.05056293]
[1766715320996,0.04209321,2969.6,2968.6,0.05056293]
[1766715321173,6.73196674,2970.9,2970.2,0.05388838]
[1766715321382,3.36541697,2971.4,2970.4,0.05388838]
[1766715321694,0.884,2971.6,2970.3,0.03366663]
[1766715321695,3.36417157,2972.5,2971.6,0.05388838]
[1766715321867,3.36417157,2972.5,2970.6,0.05388838]
[1766715321868,0.08753914,2971.3,2970.9,0.05388838]
[1766715322071,0.42806716,2972.5,2971.7,0.05388838]
[1766715322269,4.81026955,2974.1,2972.7,0.06393862]
[1766715322497,0.04203093,2974.0,2972.8,0.06393862]
[1766715322664,0.04203093,2974.0,2972.5,0.06393862]
[1766715322665,0.04203093,2974.0,2973.3,0.06393862]
[1766715322861,0.04202669,2974.3,2973.4,0.06393862]
[1766715323083,0.04202669,2974.3,2972.3,0.06393862]
[1766715323084,4.81026955,2973.7,2971.6,0.99423862]
[1766715323308,4.81026955,2972.6,2970.8,0.08742875]
[1766715323467,4.81026955,2972.1,2970.4,0.08742875]
[1766715323668,4.81026955,2971.8,2970.0,0.08742875]
[1766715323919,0.04205355,2972.4,2971.1,0.08742875]
[1766715324068,4.81026955,2972.8,2970.6,0.08076049]
[1766715324267,7.64552226,2972.2,2970.7,0.08076049]
[1766715324474,0.9165,2972.2,2971.7,0.08076049]
[1766715324671,0.9165,2972.2,2971.5,0.08076049]
[1766715324672,4.81026955,2972.6,2970.4,1.01106049]
[1766715324893,0.04205073,2972.6,2971.6,0.08076049]
[1766715325095,5.72676955,2972.7,2971.2,0.08076049]
[1766715325296,4.81026955,2971.7,2970.5,0.08076049]
[1766715325522,4.81026955,2970.7,2969.5,0.08076049]
[1766715325667,0.9165,2970.5,2968.8,0.08076049]
[1766715325862,0.9165,2970.5,2968.3,0.08076049]
[1766715325863,4.81026955,2970.0,2968.3,0.08076049]
[1766715326092,0.92508187,2970.4,2969.0,0.10103902]
[1766715326093,0.04208895,2969.9,2969.0,0.10103902]
[1766715326265,0.883,2970.8,2969.6,0.10103902]
[1766715326476,0.883,2970.8,2969.2,0.10103902]
[1766715326477,4.81026955,2970.6,2969.2,0.10103902]
[1766715326677,0.9165,2971.4,2969.2,0.10103902]
[1766715326678,0.04207054,2971.2,2970.5,0.10103902]
[1766715326979,0.03364,2972.5,2971.0,1e-08]
[1766715326980,0.04207195,2971.1,2971.0,1e-08]
[1766715327192,0.04207195,2971.1,2970.8,0.10103902]
[1766715327193,4.81026955,2972.2,2970.6,0.09422692]
[1766715327399,4.81026955,2972.2,2971.0,0.09422692]
[1766715327400,0.09422691,2971.2,2971.0,0.09422692]
[1766715327704,0.6945,2972.4,2971.0,0.09422692]
[1766715327705,0.4119,2975.1,2973.8,0.09422692]
[1766715327864,0.09422692,2974.4,2974.2,0.09422692]
[1766715328203,3.36052209,2975.8,2974.2,0.09422692]
[1766715328204,3.36044088,2975.8,2975.5,1e-08]
[1766715328421,5.69326955,2977.0,2975.4,0.03360892]
[1766715328568,0.883,2976.9,2976.0,0.07394958]
[1766715328898,0.883,2976.9,2975.1,0.07394958]
[1766715328899,4.81026955,2976.7,2975.2,0.9303]
[1766715329100,4.81026955,2976.2,2974.4,0.09744787]
[1766715329423,4.81026955,2975.1,2973.7,0.9303]
[1766715329753,4.81026955,2974.1,2972.2,0.09744787]
[1766715329867,4.81026955,2973.1,2970.8,0.9303]
[1766715330067,4.81026955,2973.1,2969.8,0.05]
[1766715330068,0.09744787,2972.2,2970.9,4.619288]
[1766715330268,4.90771742,2971.4,2969.9,0.9303]
[1766715330469,4.90771742,2971.4,2968.4,0.97644787]
[1766715330470,4.619288,2970.4,2968.6,3.887418]
[1766715330689,0.04208329,2970.3,2968.7,6.084766]
[1766715330887,0.0420847,2970.2,2968.6,0.9303]
[1766715331097,4.619288,2970.3,2969.1,0.09744787]
[1766715331287,0.04206771,2971.4,2970.0,0.09744787]
[1766715331486,6.72992798,2971.8,2969.5,1.02774787]
[1766715331487,0.04206912,2971.3,2970.1,0.01689937]
[1766715331687,4.619288,2970.4,2969.5,0.72147052]
[1766715331904,4.619288,2970.3,2969.2,0.09744787]
[1766715332091,4.619288,2970.5,2969.5,0.09744787]
[1766715332402,0.04206771,2971.4,2970.2,0.09744787]
[1766715332570,6.72992798,2971.8,2970.2,0.09744787]
[1766715332772,0.67719886,2971.7,2970.2,0.09744787]
[1766715333006,0.71926232,2971.7,2970.1,0.9303]
[1766715333191,0.71926232,2971.7,2969.8,0.02019556]
[1766715333498,6.72992798,2971.8,2970.6,0.02019556]
[1766715333708,6.72992798,2971.8,2970.2,0.02019556]
[1766715333891,3.36487131,2971.9,2970.4,0.02019556]
[1766715334069,3.36487131,2971.9,2970.3,0.0100971]
[1766715334070,0.46674917,2971.8,2970.3,0.0100971]
[1766715334271,4.81026955,2971.6,2969.7,0.02019556]
[1766715334600,0.04206629,2971.5,2970.4,0.0100971]
[1766715334792,0.04206488,2971.6,2970.4,0.0100971]
[1766715334995,0.04206488,2971.6,2970.1,0.0100971]
[1766715335203,0.04206488,2971.6,2969.8,0.001]
[1766715335573,4.81026955,2971.2,2969.8,0.001]
[1766715335884,0.04206488,2971.6,2969.8,0.001]
[1766715336088,0.01009862,2970.6,2967.4,0.05]
[1766715336307,3.36711673,2969.9,2967.6,3.37982499]
[1766715336607,0.92409037,2969.8,2967.9,5.911833]
[1766715336911,0.01009862,2969.6,2967.2,3.37006842]
[1766715337100,4.81026955,2969.0,2966.8,0.9303]
[1766715337283,4.81026955,2968.5,2966.5,0.01009862]
[1766715337482,0.01010645,2968.8,2965.9,0.9303]
[1766715337483,4.81026955,2968.0,2965.9,0.9303]
[1766715337698,0.92411732,2967.9,2965.9,0.9303]
[1766715337897,4.81026955,2967.0,2965.0,4.169289]
[1766715338087,4.81026955,2965.4,2963.8,0.19480533]
[1766715338284,0.04215425,2965.3,2963.9,7.912423]
[1766715338498,0.882,2965.5,2963.9,5.555825]
[1766715338697,4.81026955,2965.8,2964.0,0.01011463]
[1766715338698,4.85241669,2965.8,2964.0,0.01011463]
[1766715338874,4.81026955,2965.5,2964.1,0.37408696]
[1766715339073,0.04215282,2965.4,2964.3,0.01011872]
[1766715339280,4.81026955,2965.6,2964.5,0.01011872]
[1766715339480,0.9241514,2965.5,2964.4,0.01011872]
[1766715339913,0.04214572,2965.9,2965.2,0.01011872]
[1766715340101,0.882,2966.5,2965.6,0.01011872]
[1766715340428,0.04213435,2966.7,2965.6,0.01011872]
[1766715340429,1.01200405,2967.7,2966.6,0.01011872]
[1766715340585,0.882,2967.3,2965.3,2.341]
[1766715340780,0.9165,2967.9,2965.3,2.341]
[1766715340781,4.94516883,2968.4,2966.3,0.01011872]
[1766715340981,6.73672864,2968.8,2966.1,0.01011872]
[1766715340982,4.81026955,2967.9,2966.1,0.01011872]
[1766715341193,0.04203139,2967.8,2966.1,0.01011872]
[1766715341412,4.81026955,2967.5,2965.8,6.433132]
[1766715341690,4.85230094,2968.0,2966.1,0.01011872]
[1766715341894,4.81026955,2967.5,2965.7,10.138792]
[1766715342102,0.04203139,2967.4,2965.7,8.776792]
[1766715342326,3.37052141,2966.9,2966.0,0.001]
[1766715342614,4.81026955,2966.5,2964.5,3.37323714]
[1766715342801,0.04213435,2966.7,2965.0,0.01011872]
[1766715343001,0.04213577,2966.6,2965.2,0.01011872]
[1766715343212,0.882,2966.7,2965.2,3.38257251]
[1766715343430,0.882,2966.7,2965.0,0.01011872]
[1766715343431,4.81026955,2966.6,2965.3,0.00854279]
[1766715343604,4.85240532,2966.6,2965.1,4.05734]
[1766715343915,4.85240532,2966.6,2965.0,2.789]
[1766715344119,0.04213151,2966.9,2965.2,3.38257251]
[1766715344318,4.81026955,2967.2,2965.7,0.9135]
[1766715344487,0.883,2967.2,2965.7,0.9135]
[1766715344693,4.81026955,2968.2,2966.4,0.9135]
[1766715344887,0.17603221,2968.5,2966.7,3.926318]
[1766715344888,3.54476201,2968.5,2966.7,3.926318]
[1766715345110,4.81026955,2968.7,2967.0,0.9135]
[1766715345327,4.81026955,2967.7,2966.2,3.576231]
[1766715345620,0.92512157,2967.6,2966.4,4.015215]
[1766715345787,4.81026955,2967.5,2966.2,5.062274]
[1766715345991,0.883,2967.6,2966.2,5.062274]
[1766715346193,4.81026955,2967.4,2966.1,0.9135]
[1766715346411,4.81026955,2966.9,2965.2,0.9135]
[1766715346594,4.81026955,2966.9,2965.6,2.55003]
[1766715346799,0.04212725,2967.2,2965.2,0.9135]
[1766715347109,4.81026955,2966.8,2965.4,8.758692]
[1766715347285,0.04212299,2967.5,2965.7,10.931999]
[1766715347486,4.81026955,2967.2,2965.6,0.9135]
[1766715347720,0.04212867,2967.1,2965.0,10.69127919]
[1766715347891,0.04212725,2967.2,2965.4,29.335341]
[1766715348225,0.883,2967.1,2965.6,0.9135]
[1766715348519,5.69326955,2967.1,2965.7,0.9135]
[1766715348726,5.69326955,2967.1,2964.9,3.37373555]
[1766715348727,0.04213009,2967.0,2965.2,3.37242504]
[1766715349018,4.81026955,2966.6,2964.9,0.9145]
[1766715349237,0.05224881,2967.0,2964.9,0.001]
[1766715349238,4.81026955,2966.1,2964.9,0.001]
[1766715349390,4.85239964,2967.0,2964.9,0.001]
[1766715349588,0.883,2966.6,2965.5,3.37208175]
[1766715349814,0.883,2966.8,2965.4,3.021]
[1766715350018,0.04213435,2966.7,2965.3,0.9135]
[1766715350526,3.36957571,2967.8,2965.6,0.9135]
[1766715350527,4.81026955,2967.8,2965.6,0.9135]
[1766715350822,0.883,2967.1,2965.7,1.3309695]
[1766715351003,4.81026955,2966.8,2965.6,0.9135]
[1766715351835,0.04212157,2967.6,2965.9,11.423674]
[1766715352130,3.36791054,2969.2,2966.2,0.9135]
[1766715352418,3.36821124,2969.0,2966.8,0.9135]
[1766715352625,3.36821124,2969.0,2966.7,2.197141]
[1766715352626,0.883,2969.2,2967.3,0.9135]
[1766715352793,0.92509888,2969.2,2967.3,0.9135]
[1766715352994,7.66092071,2969.2,2967.3,0.9135]
[1766715353297,0.883,2969.1,2967.3,0.9135]
[1766715353630,4.81026955,2968.8,2967.3,0.9135]
[1766715354132,0.04210597,2968.7,2967.3,0.9135]
[1766715354307,0.80398389,2969.0,2967.5,3.36983993]
[1766715354504,3.3676837,2969.4,2967.7,0.9135]
[1766715354823,9.23580263,2970.5,2968.2,0.01011872]
[1766715355029,0.04208187,2970.4,2968.4,3.140204]
[1766715355205,4.81026955,2969.9,2968.6,0.9135]
[1766715355593,0.04209037,2969.8,2967.7,0.879]
[1766715355826,4.81026955,2969.4,2967.7,13.303605]
[1766715356030,0.04208329,2970.3,2968.0,0.9135]
[1766715356235,3.36625046,2970.7,2968.3,29.665828]
[1766715356523,3.36643662,2970.5,2968.8,0.9135]
[1766715356731,4.81026955,2970.3,2968.8,0.9135]
[1766715356932,0.0420847,2970.2,2968.8,0.9135]
[1766715357231,0.0420847,2970.2,2968.5,6.73740946]
[1766715357232,0.883,2971.2,2969.3,10.78889]
[1766715357445,4.81026955,2970.9,2969.4,0.9135]
[1766715357607,0.883,2970.8,2969.5,0.92192357]
[1766715357951,3.36486786,2971.9,2969.7,0.9135]
[1766715357952,3.40703984,2971.8,2969.7,0.9135]
[1766715358097,0.883,2971.7,2970.0,30.0]
[1766715358300,6.73038092,2971.6,2970.1,0.9135]
[1766715358648,4.81026955,2971.4,2969.4,2.900909]
[1766715358808,0.52831458,2971.3,2969.6,3.36736702]
[1766715358997,0.52831458,2971.3,2969.4,0.3814409]
[1766715358998,0.52831458,2971.3,2969.7,3.37574389]
[1766715359193,0.52831458,2971.3,2969.7,0.00841535]
[1766715359393,0.52831458,2971.3,2969.5,4.28947173]
[1766715359693,0.883,2971.5,2970.1,4.28039]
[1766715359927,3.40698775,2971.9,2970.2,0.92190499]
[1766715360232,6.77192554,2971.9,2970.2,0.9135]
[1766715360419,6.77192554,2971.9,2970.3,0.00839835]
[1766715360420,0.002,2970.8,2970.3,0.00839835]
[1766715360618,3.36346447,2973.2,2971.5,0.01011872]
[1766715360793,0.01011872,2974.6,2971.5,0.01011872]
[1766715360794,0.002,2972.0,2971.9,0.01011872]
[1766715361008,3.36270443,2973.8,2972.1,7.618826]
[1766715361206,3.57150696,2974.3,2972.8,0.01011872]
[1766715361400,3.57150696,2974.3,2972.4,0.01011872]
[1766715361401,4.84395094,2974.2,2972.9,0.03363718]
[1766715361605,4.84395094,2974.2,2972.1,0.01011872]
[1766715361606,4.81026955,2973.6,2971.2,10.004372]
[1766715361822,0.04202952,2974.1,2971.6,0.01011872]
[1766715361823,0.9042,2973.4,2971.6,0.01011872]
[1766715362024,0.04204083,2973.3,2971.8,0.01011872]
[1766715362304,0.04202952,2974.1,2972.2,0.01011872]
[1766715362507,0.13879168,2974.2,2973.0,21.334219]
[1766715362719,0.04200692,2975.7,2974.0,27.668048]
[1766715362912,0.04200268,2976.0,2974.2,30.0]
[1766715363112,0.04200268,2976.0,2974.1,2.79465888]
[1766715363113,3.3598242,2976.4,2974.5,0.01011872]
[1766715363333,4.852268,2976.3,2974.0,0.9135]
[1766715363548,4.852268,2976.3,2974.1,7.031278]
[1766715363549,2.39736799,2976.2,2974.1,7.031278]